[Event "EICC 2025"]
[Site "Eforie-Nord"]
[Date "2025.03.16"]
[Round "2.9"]
[White "Stefansson, Vignir Vatnar"]
[Black "Eren, Ataberk"]
[Result "1/2-1/2"]
[Annotator "ChessBase"]
[ECO "C11"]
[WhiteElo "2551"]
[BlackElo "2402"]
[PlyCount "120"]
[EventDate "2025.03.14"]
[EventType "swiss"]
[EventCountry "ROU"]
[SourceTitle "playchess.com"]
[Source "ChessBase"]
[SourceQuality "1"]
[TimeControl "40/5400+30:1800+30"]

1. e4 {[%emt 0:01:32]} e6 {[%emt 0:01:20]} 2. d4 {[%emt 0:00:08]} d5 {[%emt 0:00:06]} 3. Nc3 {[%emt 0:00:38]} Nf6 {[%emt 0:00:14]} 4. e5 {[%emt 0:00:07]} Nfd7 {[%emt 0:00:05]} 5. f4 {[%emt 0:00:08]} c5 {[%emt 0:00:07]} 6. Nf3 {[%emt 0:00:04]} Nc6 {[%emt 0:00:09]} 7. Be3 {[%emt 0:00:08]} Be7 {[%emt 0:02:17]} 8. dxc5 {[%emt 0:00:11]} Bxc5 {[%emt 0:05:21]} 9. Qd2 {[%emt 0:01:13]} Qa5 {[%emt 0:08:27]} 10. Bxc5 {[%emt 0:12:19]} Nxc5 {[%emt 0:00:27]} 11. Nb5 {[%emt 0:00:36]} Qxd2+ {[%emt 0:01:05]} 12. Kxd2 {[%emt 0:00:43]} Ke7 {[%emt 0:05:59]} 13. Bd3 {[%emt 0:02:45]} Bd7 {[%emt 0:07:22]} 14. Nbd4 {[%emt 0:04:45]} h6 {[%emt 0:23:48]} 15. g4 {[%emt 0:15:29]} Raf8 {[%emt 0:16:49]} 16. Rae1 {[%emt 0:05:37]} Rc8 {[%emt 0:03:24]} 17. f5 {[%emt 0:04:58]} h5 {[%emt 0:02:28]} 18. h3 {[%emt 0:01:52]} Ne4+ {[%emt 0:02:17]} 19. Ke3 {[%emt 0:01:03]} hxg4 {[%emt 0:10:44]} 20. hxg4 {[%emt 0:00:35]} Nxd4 {[%emt 0:00:19]} 21. Nxd4 {[%emt 0:00:52]} Ng5 {[%emt 0:01:15]} 22. Kf4 {[%emt 0:05:52]} Nh3+ {[%emt 0:00:11]} 23. Kg3 {[%emt 0:00:07]} Ng5 {[%emt 0:00:04]} 24. Rh4 {[%emt 0:03:08]} Rxh4 {[%emt 0:01:40]} 25. Kxh4 {[%emt 0:00:05]} f6 {[%emt 0:00:13]} 26. fxe6 {[%emt 0:05:51]} Rh8+ {[%emt 0:00:05]} 27. Kg3 {[%emt 0:00:05]} Bxe6 {[%emt 0:00:55]} 28. Bf5 {[%emt 0:10:33]} Bxf5 {[%emt 0:02:35]} 29. Nxf5+ {[%emt 0:01:08]} Kf7 {[%emt 0:00:13]} 30. exf6 {[%emt 0:03:09]} Kxf6 {[%emt 0:00:22]} 31. Ne3 {[%emt 0:03:11]} Ne4+ {[%emt 0:02:12]} 32. Kg2 {[%emt 0:00:08]} Ke5 {[%emt 0:00:47]} 33. Rf1 {[%emt 0:01:56]} Nd6 {[%emt 0:01:58]} 34. Re1 {[%emt 0:08:40]} Ne4 {[%emt 0:00:04]} 35. Rd1 {[%emt 0:01:00]} Rd8 {[%emt 0:00:22]} 36. c3 {[%emt 0:03:40]} g6 {[%emt 0:00:40]} 37. Rd4 {[%emt 0:01:57]} b5 {[%emt 0:00:30]} 38. Kf1 {[%emt 0:00:47]} Nc5 {[%emt 0:01:39]} 39. Nc2 {[%emt 0:00:57]} Rf8+ {[%emt 0:00:23]} 40. Ke2 {[%emt 0:00:00]} Ne4 {[%emt 0:00:00]} 41. Nb4 {[%emt 0:03:14]} a5 {[%emt 0:18:20]} 42. Nd3+ {[%emt 0:08:48]} Kd6 {[%emt 0:05:18]} 43. a4 {[%emt 0:00:18]} Nc5 {[%emt 0:05:09]} 44. axb5 {[%emt 0:02:27]} Re8+ {[%emt 0:00:06]} 45. Kf3 {[%emt 0:05:31]} Nxd3 {[%emt 0:00:05]} 46. Rxd3 {[%emt 0:00:04]} Kc5 {[%emt 0:00:03]} 47. Rd4 {[%emt 0:02:45]} Rb8 {[%emt 0:00:24]} 48. b4+ {[%emt 0:00:37]} axb4 {[%emt 0:00:13]} 49. Rxb4 {[%emt 0:00:04]} g5 {[%emt 0:02:40]} 50. Ke3 {[%emt 0:01:26]} Rxb5 {[%emt 0:00:42]} 51. Rxb5+ {[%emt 0:01:47]} Kxb5 {[%emt 0:00:04]} 52. Kd4 {[%emt 0:00:05]} Kc6 {[%emt 0:00:03]} 53. c4 {[%emt 0:06:17]} dxc4 {[%emt 0:00:05]} 54. Kxc4 {[%emt 0:00:02]} Kd6 {[%emt 0:00:04]} 55. Kd4 {[%emt 0:00:03]} Ke6 {[%emt 0:00:02]} 56. Ke4 {[%emt 0:00:04]} Kf6 {[%emt 0:00:03]} 57. Kd5 {[%emt 0:00:05]} Kf7 {[%emt 0:00:05]} 58. Ke5 {[%emt 0:00:04]} Kg6 {[%emt 0:00:04]} 59. Ke6 {[%emt 0:00:04]} Kg7 {[%emt 0:00:02]} 60. Kf5 {[%emt 0:00:04]} Kf7 {[%emt 0:00:08]} 1/2-1/2

[Event "EICC 2025"]
[Site "Eforie-Nord"]
[Date "2025.03.16"]
[Round "2.9"]
[White "Gokerkan, Cem Kaan"]
[Black "Svane, Frederik"]
[Result "1/2-1/2"]
[Annotator "TA"]
[ECO "E73"]
[WhiteElo "2473"]
[BlackElo "2654"]
[PlyCount "109"]
[EventDate "2025.03.14"]
[EventType "swiss"]
[EventCountry "ROU"]
[SourceTitle "playchess.com"]
[Source "ChessBase"]
[SourceQuality "1"]
[TimeControl "40/5400+30:1800+30"]

{[%evp 10,109,46,37,41,0,2,14,27,-90,44,62,58,0,90,-22,-6,0,0,-79,-72,-53,-33,-24,-30,-160,0,0,57,-1,-8,-69,-78,-82,-83,-107,-107,-92,-18,-18,-18,-18,-16,-12,-10,-14,0,0,0,0,21,8,8,33,48,54,56,46,17,24,25,25,18,25,26,26,26,26,308,205,302,293,837,815,720,59,8,8,8,8,8,8,8,8,8,8,8,8,8,8,8,8,8,8,8,0,8,8,8,0,8,0]} 1. d4 {[%emt 0:04:29]} Nf6 {[%emt 0:00:16]} 2. c4 {[%emt 0:00:05]} g6 {[%emt 0:00:37]} 3. Nc3 {[%emt 0:00:11]} Bg7 {[%emt 0:00:12]} 4. e4 {[%emt 0:00:06]} d6 {[%emt 0:00:04]} 5. Be2 {[%emt 0:00:03]} O-O {[%emt 0:00:10]} 6. Be3 {[%emt 0:00:05]} a5 {[%emt 0:01:31] E73: King's Indian: Averbakh Variation without 6...c5.} 7. g4 {[%emt 0:07:44]} a4 {[%emt 0:08:45][%cal Oc7c5]} 8. a3 $146 {[%emt 0:16:31][%cal Og4g5]} (8. Nxa4 Nxe4 9. g5 c5) (8. g5 Nfd7 9. Nxa4 c5 10. Nc3 Nc6 11. Nf3 e5 12. dxe5 dxe5 13. h4 Nd4 14. h5 {0-1 Galaviz Medina,S (2458)-Supi,L (2571) Abu Dhabi op-A 30th 2024 (6)}) 8... c5 {[%emt 0:07:44][%cal Of6g4]} 9. g5 {[%emt 0:01:56]} (9. d5 $11) 9... Nfd7 {[%emt 0:00:59]} (9... Ng4 $1 $17 10. Rb1 (10. Bxg4 cxd4 11. Bxd4 Bxd4 $17) 10... Nxe3 11. fxe3 Nc6) 10. d5 $14 {[%emt 0:00:04]} Qb6 {[%emt 0:49:31]} 11. Qc2 {[%emt 0:13:51]} (11. Nxa4 Qa5+ 12. Nc3 Bxc3+ 13. bxc3 Qxc3+ 14. Kf1 Ne5 $15 (14... Rxa3 15. Rxa3 Qxa3 16. Kg2 $15)) (11. Qc1 $14) 11... Bd4 {[%emt 0:19:59]} (11... f5 $11) 12. Bd2 {[%emt 0:02:38]} (12. Nxa4 Rxa4 13. Bxd4 cxd4 $17) (12. Nf3 $1 $16) 12... f5 $11 {[%emt 0:02:02]} 13. gxf6 $1 {[%emt 0:33:50]} (13. Nxa4 $2 Rxa4 14. Rb1 (14. Qxa4 $2 Qxb2 15. Rd1 fxe4 $19) 14... Qa7 $19) 13... Nxf6 {[%emt 0:01:00]} 14. f4 {[%emt 0:01:05]} (14. Nf3 $11 {keeps the balance.}) 14... Qb3 $17 {[%emt 0:01:59]} 15. Bd3 {[%emt 0:04:16]} Nh5 $36 {[%emt 0:00:46][%mdl 2048] Black is pushing.} 16. Nge2 {[%emt 0:03:52]} Bg4 {[%emt 0:00:01]} 17. f5 {[%emt 0:04:14]} (17. Qxb3 $11 axb3 18. Nxd4 cxd4 19. Nb5) 17... Bf3 $2 {[%emt 0:01:41]} ({Black should try} 17... Nd7 $17 18. O-O-O Ne5) 18. Rf1 $11 {[%emt 0:00:06]} Bg2 {[%emt 0:00:01]} (18... Qxc2 $11 19. Bxc2 Bg2) 19. Nxd4 {[%emt 0:02:41]} ({Better is} 19. Rf2 $1 $14 Bxf2+ 20. Kxf2) 19... cxd4 {[%emt 0:00:05]} 20. Qxb3 {[%emt 0:01:00]} (20. Rg1 $1 $11 dxc3 21. Bxc3 Qxc2 22. Bxc2) 20... axb3 $15 {[%emt 0:00:02]} 21. Rf2 {[%emt 0:01:08]} dxc3 {[%emt 0:00:06]} 22. Bxc3 {[%emt 0:00:01]} Bh3 {[%emt 0:00:12]} 23. Kd2 {[%emt 0:00:07]} Nd7 {[%emt 0:02:51]} (23... g5 $1 $17 {White must now prevent ...Nd7.} 24. Rg1 g4 (24... h6 $2 25. Rf3 $18)) 24. Rg1 $11 {[%emt 0:00:01]} Ne5 {[%emt 0:00:06] Dodges Rf3} 25. Bxe5 $1 {[%emt 0:01:30]} dxe5 {[%emt 0:00:05]} 26. Rf3 $1 {[%emt 0:00:00]} Nf4 {[%emt 0:00:51]} 27. Rgg3 $1 {[%emt 0:00:01]} Rf6 {[%emt 0:01:52]} 28. Rxh3 {[%emt 0:00:33]} Nxh3 {[%emt 0:00:02]} 29. Rxh3 {[%emt 0:00:02][%mdl 4096] Endgame KRR-KRB} b6 {[%emt 0:00:58]} 30. Kc3 {[%emt 0:01:09]} Kg7 {[%emt 0:00:21]} 31. Kxb3 {[%emt 0:00:07]} gxf5 {[%emt 0:00:08]} 32. exf5 {[%emt 0:00:04]} Rh6 {[%emt 0:00:04]} 33. Rxh6 Kxh6 $14 {[%emt 0:00:01] KR-KB} 34. Kb4 {[%emt 0:02:57][%cal Of5f6]} Kg5 {[%emt 0:00:48]} 35. Kb5 {[%emt 0:00:04][%cal Oa3a4]} Kf4 {[%emt 0:00:06]} 36. Kxb6 {[%emt 0:00:56]} e4 {[%emt 0:01:35]} 37. Bf1 {[%emt 0:00:01]} (37. Kb7 $2 exd3 38. Kxa8 d2 $19 (38... Kxf5 $2 39. b4 $19)) 37... Ke5 $1 {[%emt 0:00:51]} (37... Rb8+ $2 38. Kc7 Rf8 (38... Rxb2 $2 39. f6 $18) 39. c5 $18) 38. Kb7 {[%emt 0:01:16] Repels Rb8+} Rf8 {[%emt 0:00:00][%mdl 8192]} (38... Ra5 $1 $11 {and Black stays safe.}) 39. c5 $1 $18 {[%emt 0:00:12]} Rxf5 {[%emt 0:00:02] [#]} 40. Ba6 {[%emt 0:00:48] and c6 would now be decisive} Rf2 $2 {[%emt 0:01:07]} (40... Rf7) 41. b4 {[%emt 0:02:46]} Rf7 {[%emt 0:10:51] [#]} 42. c6 $2 {[%emt 0:19:56]} (42. b5 $1 $18) 42... e6+ $14 {[%emt 0:05:58]} 43. Kb6 {[%emt 0:00:05] The position is equal.} Kd6 {[%emt 0:02:47]} 44. dxe6 {[%emt 0:01:44]} Rc7 {[%emt 0:00:01] [#]} 45. e7 $1 {[%emt 0:02:16]} Rxe7 {[%emt 0:00:01]} (45... Rxc6+ $2 {is the wrong capture.} 46. Kb5 Rxa6 47. e8=Q $18 (47. e8=R Rxa3 48. Rxe4 Rh3 $16)) 46. Be2 {[%emt 0:00:43]} Re8 {[%emt 0:08:17]} 47. b5 {[%emt 0:00:16]} Rb8+ {[%emt 0:00:01]} 48. Ka7 {[%emt 0:01:53]} Kc7 {[%emt 0:00:02]} 49. a4 {[%emt 0:00:06]} Rf8 {[%emt 0:04:01]} 50. a5 {[%emt 0:00:20]} e3 {[%emt 0:02:19]} 51. Bh5 {[%emt 0:02:46]} Rf5 {[%emt 0:01:40][%csl LRb5,LRh5][%cal Of5b5]} 52. Be2 {[%emt 0:02:45]} Rf8 {[%emt 0:00:01]} ({Avoid the trap} 52... Rf2 $2 53. b6+ Kxc6 54. b7 $18) 53. Bg4 {[%emt 0:00:53]} Rf7 {[%emt 0:00:00]} 54. Bh5 {[%emt 0:00:31]} Rf5 {[%emt 0:00:08][%cal Of5b5] ( -> ...Rxb5!)} 55. Be2 {[%emt 0:00:07] Weighted Error Value: White=0.25 (precise) /Black=0.35  Loses game:     	---       	Black=1      Mistake:       	White=7     	Black=6      Inaccurate:     	White=1     	---        OK:         	White=18    	Black=20     Best:        	White=5     	Black=5      Strong:       	White=5     	Black=1} 1/2-1/2

[Event "EICC 2025"]
[Site "Eforie-Nord"]
[Date "2025.03.16"]
[Round "2.10"]
[White "Yuffa, Daniil"]
[Black "Csonka, Balazs"]
[Result "1-0"]
[Annotator "TA"]
[ECO "A14"]
[WhiteElo "2654"]
[BlackElo "2473"]
[PlyCount "113"]
[EventDate "2025.03.14"]
[EventType "swiss"]
[EventCountry "ROU"]
[SourceTitle "playchess.com"]
[Source "ChessBase"]
[SourceQuality "1"]
[TimeControl "40/5400+30:1800+30"]

{[%evp 11,113,0,0,0,-6,-2,-3,-13,-8,-21,-19,-25,-27,-43,-10,-21,7,0,0,0,0,0,0,0,0,0,0,0,0,0,0,0,0,0,13,0,0,0,16,10,33,23,168,158,163,170,162,159,293,282,268,261,453,414,527,661,618,643,635,631,718,712,680,660,660,612,612,612,612,0,612,612,602,452,434,473,417,371,443,395,441,424,390,370,822,801,801,666,918,908,923,950,839,818,759,759,1391,1391,1377,1306,1291,1251,954,725]} 1. c4 {[%emt 0:00:14]} e6 {[%emt 0:00:08]} 2. g3 {[%emt 0:00:13]} d5 {[%emt 0:00:08]} 3. Bg2 {[%emt 0:00:18]} Nf6 {[%emt 0:00:11]} 4. Nf3 {[%emt 0:00:12]} Be7 {[%emt 0:00:24]} 5. O-O {[%emt 0:00:13]} O-O {[%emt 0:00:10]} 6. d3 {[%emt 0:00:11]} c5 {[%emt 0:00:33]} 7. Ne5 {[%emt 0:00:28] A14: English Opening: 1...e6 with b3 by White.} Qc7 {[%emt 0:00:33]} 8. f4 {[%emt 0:00:25]} Rd8 {[%emt 0:00:20]} 9. Nc3 {[%emt 0:01:03] The position is equal.} a6 {[%emt 0:03:54] Prevents Nb5} 10. g4 $146 {[%emt 0:00:15]} (10. Qe1 b5 11. cxb5 axb5 12. Nxb5 Qb6 13. a4 Ba6 14. Bd2 Bxb5 15. axb5 Rxa1 16. Qxa1 Qxb5 {½-½ Yu,Y (2720)-Giri,A (2762) Shenzhen Longgang 5th 2024 (7)}) 10... d4 {[%emt 0:17:02]} 11. Ne4 {[%emt 0:01:10]} Nxe4 {[%emt 0:04:23]} 12. Bxe4 {[%emt 0:00:09]} Nd7 {[%emt 0:03:19]} (12... f6 $5 13. Nf3 $8 Bd7 $15) 13. Qe1 {[%emt 0:20:46]} (13. Bxh7+ $2 Kxh7 14. Nf3 (14. Nxf7 $2 Rf8 $19) 14... Rh8 $19) 13... Nxe5 {[%emt 0:15:23]} 14. fxe5 {[%emt 0:00:07]} Bd7 $1 {[%emt 0:00:55]} (14... Qxe5 $2 15. Bf4 $18) 15. Qf2 {[%emt 0:05:24]} Rf8 {[%emt 0:01:54]} 16. Qg2 {[%emt 0:09:00]} Bc6 $1 {[%emt 0:02:03]} (16... Qxe5 $2 {perishes.} 17. Bf4 $18) 17. Bxc6 {[%emt 0:06:12]} Qxc6 {[%emt 0:00:10]} 18. Qxc6 {[%emt 0:02:27]} bxc6 {[%emt 0:00:09]} 19. b3 {[%emt 0:01:09]} Rfb8 {[%emt 0:09:20]} 20. Kg2 {[%emt 0:07:34]} h6 {[%emt 0:05:32]} 21. Kg3 {[%emt 0:07:05]} a5 {[%emt 0:07:00]} 22. h4 {[%emt 0:06:12]} a4 {[%emt 0:05:44]} 23. bxa4 {[%emt 0:01:08]} Rxa4 {[%emt 0:00:36]} 24. h5 {[%emt 0:06:00]} Kf8 {[%emt 0:04:41]} 25. Kf3 {[%emt 0:03:47]} Ke8 {[%emt 0:01:33]} 26. Rg1 {[%emt 0:03:02]} Kf8 {[%emt 0:07:17] [#] Black is now going downhill.} (26... Kd7 $1 $11 {and Black has nothing to worry.}) 27. g5 $1 $18 {[%emt 0:03:50]} Bxg5 {[%emt 0:03:44]} 28. Bxg5 {[%emt 0:00:07]} hxg5 {[%emt 0:00:05]} 29. Rxg5 $16 {[%emt 0:00:13][%mdl 4096] Endgame KRR-KRR} Rba8 {[%emt 0:05:14]} (29... Rb2 $16) 30. Rag1 $18 {[%emt 0:02:25]} Ke7 {[%emt 0:00:19]} 31. Rxg7 {[%emt 0:00:28] [#]} Rh8 {[%emt 0:00:09]} 32. Rb1 {[%emt 0:03:33]} Rb4 {[%emt 0:00:26]} 33. Rxb4 {[%emt 0:05:07]} cxb4 {[%emt 0:00:07] KR-KR. White is a pawn up.} 34. Kg4 {[%emt 0:00:09]} Kf8 {[%emt 0:00:34]} 35. Rg5 {[%emt 0:00:11]} c5 {[%emt 0:00:15]} 36. Kh4 {[%emt 0:00:51]} Ke7 {[%emt 0:01:27]} 37. Rg1 {[%emt 0:00:44]} Kf8 {[%emt 0:00:07]} 38. Rg3 {[%emt 0:04:06]} Ke7 {[%emt 0:01:44]} 39. Rg2 {[%emt 0:00:30]} Kf8 {[%emt 0:01:53]} 40. Rg3 {[%emt 0:00:29]} Ke7 {[%emt 0:00:25]} 41. Kg5 {[%emt 0:06:16]} Rg8+ {[%emt 0:05:28]} 42. Kf4 {[%emt 0:00:32]} Rh8 {[%emt 0:00:32]} 43. Rh3 {[%emt 0:00:37]} Kf8 {[%emt 0:00:20]} 44. h6 {[%emt 0:01:20]} Kg8 {[%emt 0:00:11]} 45. e3 {[%emt 0:04:30]} dxe3 {[%emt 0:00:36]} 46. Kxe3 {[%emt 0:00:03]} Kh7 {[%emt 0:00:27]} 47. Rf3 {[%emt 0:00:37]} Ra8 $2 {[%emt 0:01:00]} (47... Rf8 48. d4 Kxh6 49. dxc5 Kg6) 48. Rxf7+ {[%emt 0:00:08] White is clearly winning.} Kxh6 {[%emt 0:00:05]} 49. Rf6+ {[%emt 0:01:54]} Kg5 {[%emt 0:00:07]} 50. Rxe6 {[%emt 0:00:36]} Kf5 {[%emt 0:01:19]} 51. Rc6 {[%emt 0:01:11]} Ra5 {[%emt 0:01:06]} 52. e6 {[%emt 0:00:15]} Kf6 {[%emt 0:00:02]} 53. Ke4 {[%emt 0:01:22] Black must now prevent Kd5.} Rxa2 {[%emt 0:02:22]} 54. Rxc5 {[%emt 0:03:49]} Kxe6 {[%emt 0:00:48]} 55. Rb5 {[%emt 0:00:26]} Rb2 {[%emt 0:00:18]} 56. Kd4 {[%emt 0:03:36]} Kd6 {[%emt 0:01:17]} 57. c5+ {[%emt 0:00:40] Weighted Error Value: White=0.11 (very precise) /Black=0.35  Mistake:       	---       	Black=3      Inaccurate:     	---       	Black=2      OK:         	White=16    	Black=15     Best:        	White=4     	Black=2      Strong:       	White=1     	Black=2} 1-0

[Event "EICC 2025"]
[Site "Eforie-Nord"]
[Date "2025.03.16"]
[Round "2.10"]
[White "Pasztor, Balazs"]
[Black "Ahmadzada, Ahmad"]
[Result "1/2-1/2"]
[Annotator "ChessBase"]
[ECO "B30"]
[WhiteElo "2407"]
[BlackElo "2550"]
[PlyCount "34"]
[EventDate "2025.03.14"]
[EventType "swiss"]
[EventCountry "ROU"]
[SourceTitle "playchess.com"]
[Source "ChessBase"]
[SourceQuality "1"]
[TimeControl "40/5400+30:1800+30"]

1. e4 {[%emt 0:00:03]} c5 {[%emt 0:04:19]} 2. Nf3 {[%emt 0:00:10]} Nc6 {[%emt 0:00:31]} 3. Bb5 {[%emt 0:00:12]} Nf6 {[%emt 0:00:33]} 4. e5 {[%emt 0:03:38]} Nd5 {[%emt 0:00:08]} 5. Nc3 {[%emt 0:04:24]} Nc7 {[%emt 0:00:08]} 6. Bxc6 {[%emt 0:03:13]} dxc6 {[%emt 0:00:07]} 7. h3 {[%emt 0:05:20]} Bf5 {[%emt 0:04:03]} 8. d3 {[%emt 0:03:24]} h6 {[%emt 0:06:27]} 9. O-O {[%emt 0:12:36]} c4 {[%emt 0:04:01]} 10. dxc4 {[%emt 0:13:30]} Qxd1 {[%emt 0:00:37]} 11. Rxd1 {[%emt 0:00:05]} Bxc2 {[%emt 0:00:18]} 12. Rd2 {[%emt 0:01:06]} Bg6 {[%emt 0:14:34]} 13. b3 {[%emt 0:03:44]} e6 {[%emt 0:01:45]} 14. Bb2 {[%emt 0:08:33]} Na6 {[%emt 0:08:05]} 15. Rad1 {[%emt 0:03:32]} Rc8 {[%emt 0:02:45]} 16. a3 {[%emt 0:04:19]} Be7 {[%emt 0:07:29]} 17. b4 {[%emt 0:02:57]} Nb8 {[%emt 0:06:30]} 1/2-1/2

[Event "EICC 2025"]
[Site "Eforie-Nord"]
[Date "2025.03.16"]
[Round "2.11"]
[White "Baum, Jonasz"]
[Black "Martirosyan, Haik M."]
[Result "1/2-1/2"]
[Annotator "TA"]
[ECO "A29"]
[WhiteElo "2469"]
[BlackElo "2652"]
[PlyCount "52"]
[EventDate "2025.03.14"]
[EventType "swiss"]
[EventCountry "ROU"]
[SourceTitle "playchess.com"]
[Source "ChessBase"]
[SourceQuality "1"]
[TimeControl "40/5400+30:1800+30"]

{[%evp 16,52,-1,5,11,0,0,0,-5,0,0,0,51,39,28,37,44,33,54,23,14,20,17,16,57,58,49,65,69,70,71,44,31,24,51,22,19,10,2]} 1. c4 {[%emt 0:00:02]} e5 {[%emt 0:00:58]} 2. Nc3 {[%emt 0:00:05]} Nf6 {[%emt 0:00:29]} 3. Nf3 {[%emt 0:00:05]} Nc6 {[%emt 0:00:23]} 4. g3 {[%emt 0:00:04]} d5 {[%emt 0:00:42]} 5. cxd5 {[%emt 0:00:06]} Nxd5 {[%emt 0:00:02]} 6. Bg2 {[%emt 0:00:07]} Nb6 {[%emt 0:00:05]} 7. O-O {[%emt 0:00:06]} Be7 {[%emt 0:00:56]} 8. b3 {[%emt 0:00:06]} O-O {[%emt 0:02:31]} 9. Bb2 {[%emt 0:00:12]} Bf5 {[%emt 0:01:04] A29: English Opening: Four Knights Variation with 4 g3.} 10. d3 {[%emt 0:00:35][%cal Bd2d3,Bd3d4][%mdl 32]} f6 {[%emt 0:04:34]} 11. Qc1 {[%emt 0:05:09][%cal Od3d4]} Qd7 $146 {[%emt 0:02:24]} (11... Qc8 12. Rd1 Rd8 13. Nh4 Bh3 14. Bxc6 bxc6 15. Nf3 a5 16. Ne4 Qe6 17. Ba3 Nd5 18. Bxe7 Nxe7 {0-1 Claridge Hansen,W (2345)-Kosteniuk,A (2521) Titled Tuesday intern op 09th Aug Late blitz 2022 (5)}) 12. Ba3 {[%emt 0:00:11]} Bd6 {[%emt 0:06:10]} 13. Rd1 {[%emt 0:13:15]} Bg4 {[%emt 0:05:51]} ({Better is} 13... Rad8 $11) 14. d4 $1 $14 {[%emt 0:20:58]} Qe7 {[%emt 0:25:39]} 15. Bxd6 {[%emt 0:05:23]} cxd6 {[%emt 0:00:07][%cal Bc7d6,Bd6d5,Bd5d4,Bd4e3][%mdl 32]} 16. Qe3 {[%emt 0:09:30]} Qf7 {[%emt 0:19:26]} 17. Nb5 {[%emt 0:08:24]} d5 {[%emt 0:11:38]} 18. dxe5 {[%emt 0:09:03]} fxe5 {[%emt 0:00:13]} 19. Ng5 {[%emt 0:02:14]} d4 {[%emt 0:04:19]} 20. Nxf7 {[%emt 0:01:08]} dxe3 {[%emt 0:00:06]} 21. f3 $1 {[%emt 0:00:04]} Bxf3 {[%emt 0:03:37]} 22. Bxf3 {[%emt 0:05:10]} Rxf7 {[%emt 0:00:02]} 23. Bxc6 {[%emt 0:00:21]} bxc6 {[%emt 0:00:05]} 24. Nc3 {[%emt 0:00:08]} a5 {[%emt 0:03:00]} 25. Rd3 {[%emt 0:05:10]} a4 {[%emt 0:00:05]} 26. Nxa4 {[%emt 0:00:44]} Nxa4 {[%emt 0:01:03] Weighted Error Value: White=0.07 (flawless) /Black=0.13 (very precise)   Mistake:       	---       	Black=1      Inaccurate:     	White=3     	Black=2      OK:         	White=6     	Black=7      Best:        	White=1     	---        Strong:       	White=2     	---} 1/2-1/2

[Event "EICC 2025"]
[Site "Eforie-Nord"]
[Date "2025.03.16"]
[Round "2.11"]
[White "Salimova, Nurgyul"]
[Black "Petkov, Momchil"]
[Result "0-1"]
[Annotator "ChessBase"]
[ECO "E01"]
[WhiteElo "2404"]
[BlackElo "2547"]
[PlyCount "84"]
[EventDate "2025.03.14"]
[EventType "swiss"]
[EventCountry "ROU"]
[SourceTitle "playchess.com"]
[Source "ChessBase"]
[SourceQuality "1"]
[TimeControl "40/5400+30:1800+30"]

1. d4 {[%emt 0:02:07]} Nf6 {[%emt 0:00:39]} 2. Nf3 {[%emt 0:00:44]} e6 {[%emt 0:00:15]} 3. c4 {[%emt 0:00:09]} c5 {[%emt 0:00:13]} 4. g3 {[%emt 0:01:51]} cxd4 {[%emt 0:02:54]} 5. Nxd4 {[%emt 0:00:31]} d5 {[%emt 0:00:28]} 6. Bg2 {[%emt 0:00:24]} e5 {[%emt 0:00:20]} 7. Nf3 {[%emt 0:04:20]} d4 {[%emt 0:00:28]} 8. O-O {[%emt 0:00:11]} Nc6 {[%emt 0:00:14]} 9. e3 {[%emt 0:01:35]} Be7 {[%emt 0:00:24]} 10. exd4 {[%emt 0:00:07]} exd4 {[%emt 0:00:08]} 11. Bf4 {[%emt 0:05:19]} O-O {[%emt 0:00:46]} 12. Ne5 {[%emt 0:00:39]} a5 {[%emt 0:00:55]} 13. Na3 {[%emt 0:04:27]} Ra6 {[%emt 0:08:38]} 14. Nb5 {[%emt 0:01:40]} g5 {[%emt 0:19:10]} 15. Bxc6 {[%emt 0:15:59]} bxc6 {[%emt 0:01:22]} 16. Bxg5 {[%emt 0:00:12]} cxb5 {[%emt 0:01:39]} 17. cxb5 {[%emt 0:00:06]} Re6 {[%emt 0:07:58]} 18. Nc6 {[%emt 0:02:33]} Rxc6 {[%emt 0:15:16]} 19. bxc6 {[%emt 0:00:20]} Qd5 {[%emt 0:00:43]} 20. Re1 {[%emt 0:10:40]} Bh3 {[%emt 0:00:41]} 21. f3 {[%emt 0:00:40]} Qxg5 22. Rxe7 {[%emt 0:07:04]} Qc5 {[%emt 0:07:16]} 23. Re2 Qg5 {[%emt 0:00:00]} 24. Re7 {[%emt 0:01:00]} Qc5 {[%emt 0:01:00]} 25. Re2 {[%emt 0:00:30]} d3+ {[%emt 0:00:30]} 26. Rf2 {[%emt 0:00:06]} Qd4 {[%emt 0:14:35]} 27. Qd2 {[%emt 0:03:05]} Re8 {[%emt 0:17:28]} 28. Re1 {[%emt 0:13:30]} Rxe1+ {[%emt 0:00:00]} 29. Qxe1 {[%emt 0:07:58]} Nd5 30. Qxa5 {[%emt 0:05:28]} h6 {[%emt 0:00:00]} 31. Qd2 {[%emt 0:12:45]} Qc5 {[%emt 0:02:00]} 32. c7 {[%emt 0:00:00]} Kg7 {[%emt 0:00:00]} 33. Qe1 {[%emt 0:00:00]} Qxc7 {[%emt 0:00:00]} 34. Rd2 {[%emt 0:00:00]} Qc5+ {[%emt 0:00:00]} 35. Kh1 {[%emt 0:02:00]} Nb4 {[%emt 0:02:00]} 36. g4 {[%emt 0:00:00]} Nc2 {[%emt 0:00:00]} 37. Qg1 {[%emt 0:00:00]} Ne3 {[%emt 0:00:00]} 38. Qe1 {[%emt 0:00:06]} Qc6 {[%emt 0:00:00]} 39. Qxe3 {[%emt 0:00:49]} Qc1+ {[%emt 0:00:00]} 40. Qg1 {[%emt 0:00:04]} Qxd2 {[%emt 0:00:00]} 41. Qd4+ {[%emt 0:30:04]} Kg8 {[%emt 0:28:28]} 42. Qd8+ {[%emt 0:00:04]} Kh7 {[%emt 0:00:05]} 0-1